[Event "Championnat d'Europe Rapide"]
[Date "2024.12.07"]
[White "Pultinevicius, Paulius"]
[Black "Peyrer, Konstantin"]
[WhiteElo "2579"]
[BlackElo "2440"]
[Round "4.8"]
[Result "1-0"]
[TimeControl "900+10"]

1. d4 {[%emt 00:10:51] [%clk 00:15:19]} Nf6 {[%emt 00:00:04] [%clk 00:15:16]} 2.
c4 {[%emt 00:00:04] [%clk 00:15:28]} e6 {[%clk 00:15:24]} 3. Nc3 {[%emt
00:00:04] [%clk 00:15:33]} Bb4 {[%emt 00:00:11] [%clk 00:15:23]} 4. e3 {[%emt
00:00:10] [%clk 00:15:33]} c5 {[%emt 00:00:09] [%clk 00:15:24]} 5. Bd3 {[%emt
00:01:04] [%clk 00:14:38]} d5 {[%emt 00:00:43] [%clk 00:14:52]} 6. a3 {[%emt
00:00:22] [%clk 00:14:27]} Bxc3+ {[%emt 00:00:11] [%clk 00:14:50]} 7. bxc3
{[%emt 00:00:01] [%clk 00:14:35]} dxc4 {[%emt 00:00:03] [%clk 00:14:57]} 8. Bxc4
{[%emt 00:00:02] [%clk 00:14:44]} Qc7 {[%emt 00:00:18] [%clk 00:14:48]} 9. Ba2
{[%emt 00:00:04] [%clk 00:14:51]} O-O {[%emt 00:01:28] [%clk 00:13:30]} 10. Ne2
{[%emt 00:00:07] [%clk 00:14:54]} b5 {[%emt 00:00:44] [%clk 00:12:56]} 11. f3
{[%emt 00:00:55] [%clk 00:14:09]} Nc6 {[%emt 00:00:37] [%clk 00:12:28]} 12. O-O
{[%emt 00:00:21] [%clk 00:13:59]} Rd8 {[%emt 00:00:08] [%clk 00:12:29]} 13. Rf2
{[%emt 00:01:35] [%clk 00:12:35]} e5 {[%emt 00:03:13] [%clk 00:09:26]} 14. Bb2
{[%emt 00:00:02] [%clk 00:12:43]} Be6 {[%emt 00:00:30] [%clk 00:09:06]} 15. Bxe6
{[%emt 00:00:20] [%clk 00:12:34]} fxe6 {[%emt 00:00:01] [%clk 00:09:14]} 16. Qb3
{[%emt 00:00:20] [%clk 00:12:24]} c4 {[%emt 00:00:06] [%clk 00:09:18]} 17. Qc2
{[%emt 00:00:02] [%clk 00:12:32]} Nd5 {[%emt 00:01:28] [%clk 00:07:59]} 18. Qe4
{[%emt 00:00:22] [%clk 00:12:21]} Qd6 {[%emt 00:01:24] [%clk 00:06:44]} 19. Rd1
{[%emt 00:00:56] [%clk 00:11:36]} a5 {[%emt 00:00:18] [%clk 00:06:36]} 20. Bc1
{[%emt 00:00:35] [%clk 00:11:11]} exd4 {[%emt 00:00:35] [%clk 00:06:11]} 21.
cxd4 {[%emt 00:00:23] [%clk 00:10:59]} b4 {[%emt 00:00:33] [%clk 00:05:46]} 22.
Qc2 {[%emt 00:00:02] [%clk 00:11:08]} Nb6 {[%emt 00:00:02] [%clk 00:05:54]} 23.
e4 {[%emt 00:00:01] [%clk 00:11:16]} Rac8 {[%emt 00:00:38] [%clk 00:05:26]} 24.
Rff1 {[%emt 00:00:32] [%clk 00:10:55]} e5 {[%emt 00:00:13] [%clk 00:05:23]} 25.
d5 {[%emt 00:03:07] [%clk 00:07:58]} Na7 {[%emt 00:00:29] [%clk 00:05:04]} 26.
axb4 {[%emt 00:00:14] [%clk 00:07:55]} axb4 {[%emt 00:00:03] [%clk 00:05:11]}
27. f4 {[%emt 00:00:01] [%clk 00:08:03]} b3 {[%emt 00:00:21] [%clk 00:05:00]}
28. Qc3 {[%emt 00:00:17] [%clk 00:07:55]} Nb5 {[%emt 00:00:34] [%clk 00:04:37]}
29. Qg3 {[%emt 00:00:14] [%clk 00:07:51]} exf4 {[%emt 00:00:48] [%clk 00:03:59]}
30. Rxf4 {[%emt 00:01:53] [%clk 00:06:08]} c3 {[%emt 00:00:10] [%clk 00:03:59]}
31. e5 {[%emt 00:00:01] [%clk 00:06:17]} c2 {[%emt 00:00:23] [%clk 00:03:46]}
32. Rdf1 {[%emt 00:00:35] [%clk 00:05:52]} Qxd5 {[%emt 00:00:21] [%clk
00:03:36]} 33. Rf7 {[%emt 00:00:02] [%clk 00:05:59]} Qxf7 {[%emt 00:00:19] [%clk
00:03:27]} 34. Rxf7 {[%emt 00:00:01] [%clk 00:06:07]} Kxf7 {[%emt 00:00:01]
[%clk 00:03:36]} 35. Qxb3+ {[%emt 00:00:02] [%clk 00:06:16]} Rd5 {[%emt
00:00:03] [%clk 00:03:43]} 36. Nf4 {[%emt 00:00:23] [%clk 00:06:03]} Rcc5 {[%emt
00:00:16] [%clk 00:03:37]} 37. Nxd5 {[%emt 00:01:33] [%clk 00:04:40]} Nxd5
{[%emt 00:00:15] [%clk 00:03:32]} 38. Qh3 {[%emt 00:00:03] [%clk 00:04:47]} Ne7
{[%emt 00:01:05] [%clk 00:02:37]} 39. e6+ {[%emt 00:00:27] [%clk 00:04:30]} Kg8
{[%emt 00:00:49] [%clk 00:01:58]} 40. Qh4 {[%emt 00:00:45] [%clk 00:03:54]} Rc7
{[%emt 00:01:20]} 41. Qb4 {[%clk 00:03:53]} Rb7 {[%emt 00:00:01] [%clk
00:01:08]} 42. Qc4 {[%emt 00:00:02] [%clk 00:04:00]} Nc7 {[%emt 00:00:49] [%clk
00:00:30]} 43. Qe4 {[%emt 00:00:36] [%clk 00:03:34]} Rb6 {[%emt 00:00:16] [%clk
00:00:24]} 44. Qd4 {[%emt 00:00:29] [%clk 00:03:15]} Ncd5 {[%emt 00:00:14] [%clk
00:00:18]} 45. Bb2 {[%emt 00:00:54] [%clk 00:02:32]} Rxb2 {[%emt 00:00:17] [%clk
00:00:11]} 46. Qxb2 {[%emt 00:00:03] [%clk 00:02:40]} Nb4 {[%emt 00:00:01] [%clk
00:00:20]} 47. Kf1 {[%emt 00:00:33] [%clk 00:02:17]} Ned5 {[%emt 00:00:17] [%clk
00:00:12]} 48. g3 {[%emt 00:01:00] [%clk 00:01:28]} g6 {[%emt 00:00:10] [%clk
00:00:13]} 49. Ke2 {[%emt 00:00:01] [%clk 00:01:37]} Kf8 {[%emt 00:00:01] [%clk
00:00:21]} 50. Kd2 {[%emt 00:00:09] [%clk 00:01:38]} Ke7 {[%emt 00:00:04] [%clk
00:00:27]} 51. Qg7+ {[%emt 00:00:21] [%clk 00:01:27]} Kxe6 {[%emt 00:00:01]
[%clk 00:00:36]} 52. Qxh7 {[%emt 00:00:02] [%clk 00:01:36]} Ne7 {[%emt
00:00:36]} 53. h4 {[%emt 00:00:16] [%clk 00:01:28]} c1=Q+ {[%emt 00:00:04] [%clk
00:00:17]} 54. Kxc1 {[%emt 00:00:03] [%clk 00:01:35]} Nd3+ {[%clk 00:00:27]} 55.
Kd2 {[%emt 00:00:06] [%clk 00:01:39]} Ne5 {[%clk 00:00:36]} 56. Ke3 {[%emt
00:00:32] [%clk 00:01:18]} Nf7 {[%emt 00:00:29] [%clk 00:00:15]} 57. g4 {[%emt
00:00:23] [%clk 00:01:06]} Nd5+ {[%emt 00:00:02] [%clk 00:00:24]} 58. Kf2 {[%emt
00:00:04] [%clk 00:01:10]} Ne7 {[%emt 00:00:07] [%clk 00:00:28]} 59. Kg3 {[%emt
00:00:04] [%clk 00:01:16]} Kf6 {[%emt 00:00:16] [%clk 00:00:23]} 60. Kh3 {[%emt
00:00:05] [%clk 00:01:20]} Ne5 {[%emt 00:00:12] [%clk 00:00:21]} 61. Qh8+ {[%emt
00:00:12] [%clk 00:01:17]} Ke6 {[%clk 00:00:31]} 62. Qg7 {[%emt 00:00:03] [%clk
00:01:23]} Nd7 {[%emt 00:00:12] [%clk 00:00:29]} 63. h5 {[%emt 00:00:41] [%clk
00:00:52]} gxh5 {[%emt 00:00:01] [%clk 00:00:39]} 64. gxh5 {[%emt 00:00:01]
[%clk 00:01:01]} Nf6 {[%emt 00:00:07] [%clk 00:00:42]} 65. h6 {[%emt 00:00:05]
[%clk 00:01:06]} Nf5 {[%emt 00:00:01] [%clk 00:00:50]} 66. Qg6 {[%emt 00:00:04]
[%clk 00:01:12]} Ne7 {[%emt 00:00:10] [%clk 00:00:50]} 67. Qc2 {[%emt 00:00:03]
[%clk 00:01:20]} Nf5 {[%emt 00:00:20] [%clk 00:00:40]} 68. Qc8+ {[%emt 00:00:07]
[%clk 00:01:23]} Ke5 {[%emt 00:00:02] [%clk 00:00:48]} 69. h7 {[%clk 00:01:32]}
Nxh7 {[%emt 00:00:03] [%clk 00:00:55]} 70. Qc7+ {[%clk 00:01:41]} 1-0

[Site "Europe Echecs"]

[Event "Championnat d'Europe Rapide"]
[Date "2024.12.07"]
[White "Larkin, Vladyslav"]
[Black "Sargissian, Gabriel"]
[WhiteElo "2449"]
[BlackElo "2628"]
[Round "4.9"]
[Result "0-1"]
[TimeControl "900+10"]

1. d4 {[%emt 00:00:02] [%clk 00:15:18]} d5 {[%emt 00:00:14] [%clk 00:15:06]} 2.
Bf4 {[%emt 00:00:10] [%clk 00:15:18]} Bf5 {[%emt 00:00:05] [%clk 00:15:11]} 3.
c4 {[%emt 00:01:23] [%clk 00:14:05]} e6 {[%emt 00:00:06] [%clk 00:15:16]} 4. Nc3
{[%emt 00:00:06] [%clk 00:14:08]} Nf6 {[%emt 00:00:31] [%clk 00:14:54]} 5. e3
{[%emt 00:00:03] [%clk 00:14:16]} Bb4 {[%emt 00:00:02] [%clk 00:15:02]} 6. Qb3
{[%emt 00:00:13] [%clk 00:14:14]} c5 {[%emt 00:00:18] [%clk 00:14:54]} 7. a3
{[%emt 00:00:44] [%clk 00:13:40]} Qa5 {[%emt 00:00:38] [%clk 00:14:25]} 8. Rc1
{[%emt 00:00:07] [%clk 00:13:44]} Bxc3+ {[%emt 00:00:15] [%clk 00:14:20]} 9.
bxc3 {[%emt 00:00:01] [%clk 00:13:52]} O-O {[%emt 00:01:35] [%clk 00:12:55]} 10.
Nf3 {[%emt 00:01:45] [%clk 00:12:17]} Nc6 {[%emt 00:01:09] [%clk 00:11:56]} 11.
Bd6 {[%emt 00:00:58] [%clk 00:11:28]} Rfc8 {[%emt 00:00:51] [%clk 00:11:15]} 12.
cxd5 {[%emt 00:00:54] [%clk 00:10:45]} exd5 {[%emt 00:00:32] [%clk 00:10:53]}
13. Bxc5 {[%emt 00:00:26] [%clk 00:10:29]} Qc7 {[%emt 00:02:21] [%clk 00:08:42]}
14. a4 {[%emt 00:00:28] [%clk 00:10:12]} Na5 {[%emt 00:00:18] [%clk 00:08:33]}
15. Qa2 {[%emt 00:00:03] [%clk 00:10:19]} b6 {[%emt 00:01:06] [%clk 00:07:37]}
16. Bb4 {[%emt 00:00:07] [%clk 00:10:22]} Nc4 {[%emt 00:00:33] [%clk 00:07:14]}
17. Bxc4 {[%emt 00:00:43] [%clk 00:09:49]} dxc4 {[%emt 00:00:40] [%clk
00:06:44]} 18. O-O {[%emt 00:00:23] [%clk 00:09:36]} Nd5 {[%emt 00:00:11] [%clk
00:06:42]} 19. Ba3 {[%emt 00:00:14] [%clk 00:09:33]} Re8 {[%emt 00:01:24] [%clk
00:05:28]} 20. Rfe1 {[%emt 00:00:20] [%clk 00:09:23]} Rac8 {[%emt 00:00:37]
[%clk 00:05:01]} 21. a5 {[%emt 00:00:43] [%clk 00:08:50]} Be4 {[%emt 00:00:03]
[%clk 00:05:08]} 22. Nd2 {[%emt 00:00:17] [%clk 00:08:42]} Bd3 {[%emt 00:00:02]
[%clk 00:05:16]} 23. axb6 {[%emt 00:00:11] [%clk 00:08:42]} axb6 {[%emt
00:00:01] [%clk 00:05:25]} 24. Qb2 {[%clk 00:08:51]} Qc6 {[%emt 00:00:08] [%clk
00:05:27]} 25. Nf1 {[%emt 00:01:10] [%clk 00:07:51]} Re6 {[%emt 00:00:13] [%clk
00:05:24]} 26. Qd2 {[%emt 00:00:34] [%clk 00:07:27]} Rce8 {[%emt 00:00:03] [%clk
00:05:31]} 27. Ra1 {[%emt 00:00:13] [%clk 00:07:24]} h5 {[%emt 00:00:40] [%clk
00:05:00]} 28. h4 {[%emt 00:03:12] [%clk 00:04:22]} Rg6 {[%emt 00:00:32] [%clk
00:04:38]} 29. Ng3 {[%emt 00:00:02] [%clk 00:04:30]} Nf6 {[%emt 00:00:31] [%clk
00:04:18]} 30. Qd1 {[%emt 00:01:05] [%clk 00:03:35]} Be4 {[%emt 00:01:52] [%clk
00:02:36]} 31. Nxe4 {[%emt 00:00:54] [%clk 00:02:51]} Qxe4 {[%emt 00:01:06]
[%clk 00:01:40]} 32. f3 {[%emt 00:00:04] [%clk 00:02:57]} Qxh4 {[%emt 00:00:01]
[%clk 00:01:49]} 33. Qd2 {[%emt 00:00:18] [%clk 00:02:50]} Nd5 {[%emt 00:00:08]
[%clk 00:01:50]} 34. Qf2 {[%emt 00:01:16] [%clk 00:01:44]} Qh3 {[%emt 00:00:12]
[%clk 00:01:48]} 35. Ra2 {[%emt 00:00:30] [%clk 00:01:24]} Nf4 {[%emt 00:00:26]
[%clk 00:01:32]} 36. Qf1 {[%emt 00:00:10] [%clk 00:01:24]} Qh4 {[%emt 00:00:20]
[%clk 00:01:22]} 37. e4 {[%emt 00:00:59] [%clk 00:00:35]} Nh3+ {[%emt 00:00:08]
[%clk 00:01:24]} 38. Kh1 {[%emt 00:00:01] [%clk 00:00:45]} Ng5+ {[%emt 00:00:04]
[%clk 00:01:30]} 39. Kg1 {[%emt 00:00:05] [%clk 00:00:49]} Nxf3+ {[%emt
00:00:23] [%clk 00:01:17]} 40. Qxf3 {[%emt 00:00:01] [%clk 00:00:58]} Qxe1+
{[%emt 00:00:02] [%clk 00:01:25]} 41. Kh2 {[%emt 00:00:01] [%clk 00:01:07]} Qh4+
{[%emt 00:00:10] [%clk 00:01:25]} 42. Kg1 {[%emt 00:00:02] [%clk 00:01:15]} Rxe4
{[%emt 00:00:05] [%clk 00:01:30]} 0-1

[Site "Europe Echecs"]

[Event "Championnat d'Europe Rapide"]
[Date "2024.12.07"]
[White "Fressinet, Laurent"]
[Black "Kalezic, Blazo"]
[WhiteElo "2588"]
[BlackElo "2382"]
[Round "4.10"]
[Result "0-1"]
[TimeControl "900+10"]

1. d4 {[%emt 00:00:06] [%clk 00:15:15]} d5 {[%emt 00:00:08] [%clk 00:15:13]} 2.
Nf3 {[%emt 00:00:04] [%clk 00:15:19]} Nf6 {[%emt 00:00:09] [%clk 00:15:14]} 3.
g3 {[%emt 00:00:02] [%clk 00:15:27]} Bf5 {[%emt 00:00:32] [%clk 00:14:52]} 4. c4
{[%emt 00:00:05] [%clk 00:15:32]} c6 {[%emt 00:00:07] [%clk 00:14:55]} 5. Nc3
{[%emt 00:00:09] [%clk 00:15:34]} e6 {[%emt 00:00:07] [%clk 00:14:57]} 6. Qb3
{[%emt 00:00:03] [%clk 00:15:41]} Qb6 {[%emt 00:00:19] [%clk 00:14:48]} 7. c5
{[%emt 00:00:04] [%clk 00:15:47]} Qc7 {[%emt 00:00:12] [%clk 00:14:46]} 8. Bf4
{[%emt 00:00:11] [%clk 00:15:46]} Qc8 {[%emt 00:00:02] [%clk 00:14:54]} 9. Nh4
{[%emt 00:00:03] [%clk 00:15:53]} Bg6 {[%emt 00:00:40] [%clk 00:14:23]} 10. Bg2
{[%emt 00:00:28] [%clk 00:15:35]} Be7 {[%emt 00:00:05] [%clk 00:14:29]} 11. O-O
{[%emt 00:00:09] [%clk 00:15:35]} Nbd7 {[%emt 00:00:19] [%clk 00:14:20]} 12.
Nxg6 {[%emt 00:00:14] [%clk 00:15:31]} hxg6 {[%emt 00:00:03] [%clk 00:14:28]}
13. Qc2 {[%emt 00:00:09] [%clk 00:15:32]} O-O {[%emt 00:00:20] [%clk 00:14:18]}
14. b4 {[%emt 00:00:14] [%clk 00:15:28]} a6 {[%emt 00:01:43] [%clk 00:12:46]}
15. a4 {[%emt 00:00:58] [%clk 00:14:40]} Re8 {[%emt 00:00:11] [%clk 00:12:44]}
16. Rfd1 {[%emt 00:00:46] [%clk 00:14:04]} Bd8 {[%emt 00:00:18] [%clk 00:12:35]}
17. e4 {[%emt 00:02:31] [%clk 00:11:44]} dxe4 {[%emt 00:00:24] [%clk 00:12:22]}
18. Bxe4 {[%emt 00:00:26] [%clk 00:11:27]} Nd5 {[%emt 00:02:54] [%clk 00:09:38]}
19. Nxd5 {[%emt 00:01:30] [%clk 00:10:07]} exd5 {[%emt 00:00:25] [%clk
00:09:23]} 20. Bf3 {[%emt 00:00:26] [%clk 00:09:51]} Nf8 {[%emt 00:00:30] [%clk
00:09:03]} 21. h4 {[%emt 00:00:21] [%clk 00:09:40]} Bf6 {[%emt 00:00:19] [%clk
00:08:54]} 22. Kg2 {[%emt 00:00:52] [%clk 00:08:57]} Qf5 {[%emt 00:01:35] [%clk
00:07:30]} 23. Qxf5 {[%emt 00:01:44] [%clk 00:07:24]} gxf5 {[%emt 00:00:02]
[%clk 00:07:37]} 24. Be3 {[%emt 00:00:07] [%clk 00:07:27]} Ne6 {[%emt 00:00:21]
[%clk 00:07:27]} 25. Rab1 {[%emt 00:00:30] [%clk 00:07:06]} g6 {[%emt 00:00:37]
[%clk 00:07:00]} 26. Rd2 {[%emt 00:00:29] [%clk 00:06:47]} Kg7 {[%emt 00:00:12]
[%clk 00:06:58]} 27. Bd1 {[%emt 00:00:24] [%clk 00:06:33]} f4 {[%emt 00:01:10]
[%clk 00:05:58]} 28. gxf4 {[%emt 00:00:03] [%clk 00:06:40]} Bxh4 {[%emt
00:00:02] [%clk 00:06:06]} 29. b5 {[%emt 00:00:16] [%clk 00:06:34]} axb5 {[%emt
00:00:03] [%clk 00:06:14]} 30. axb5 {[%emt 00:00:01] [%clk 00:06:42]} Bd8 {[%emt
00:00:46] [%clk 00:05:37]} 31. Kf3 {[%emt 00:01:24] [%clk 00:05:29]} Bc7 {[%emt
00:00:07] [%clk 00:05:40]} 32. bxc6 {[%emt 00:02:49] [%clk 00:02:51]} bxc6
{[%emt 00:00:02] [%clk 00:05:47]} 33. Rb7 {[%emt 00:00:01] [%clk 00:03:00]} Rh8
{[%emt 00:00:34] [%clk 00:05:23]} 34. Bc2 {[%emt 00:00:22] [%clk 00:02:48]} f5
{[%emt 00:01:48] [%clk 00:03:45]} 35. Re2 {[%emt 00:01:16] [%clk 00:01:43]} Kf6
{[%emt 00:00:03] [%clk 00:03:52]} 36. Rb4 {[%emt 00:00:14] [%clk 00:01:38]} Rh2
{[%emt 00:01:26] [%clk 00:02:36]} 37. Re1 {[%emt 00:00:54] [%clk 00:00:55]} Ra2
{[%emt 00:01:20] [%clk 00:01:25]} 38. Rc1 {[%emt 00:00:20] [%clk 00:00:45]} Rh3+
{[%emt 00:00:26] [%clk 00:01:09]} 39. Kg2 {[%emt 00:00:04] [%clk 00:00:51]} Rh4
{[%emt 00:00:03] [%clk 00:01:16]} 40. Ra4 {[%emt 00:00:38] [%clk 00:00:24]} Rb2
{[%emt 00:00:48] [%clk 00:00:38]} 41. Bd1 {[%emt 00:00:14] [%clk 00:00:20]} Bxf4
{[%emt 00:00:14] [%clk 00:00:34]} 42. Rc2 {[%emt 00:00:14] [%clk 00:00:16]} Rb1
{[%emt 00:00:13] [%clk 00:00:31]} 43. Rd2 {[%emt 00:00:09] [%clk 00:00:16]} Bc7
{[%emt 00:00:12] [%clk 00:00:29]} 44. Rd3 {[%emt 00:00:07] [%clk 00:00:19]} f4
{[%emt 00:00:07] [%clk 00:00:32]} 45. Ra6 {[%emt 00:00:17] [%clk 00:00:13]} fxe3
{[%emt 00:00:04] [%clk 00:00:37]} 46. Rxc6 {[%emt 00:00:02] [%clk 00:00:22]}
Rh2+ {[%emt 00:00:14] [%clk 00:00:33]} 47. Kf3 {[%emt 00:00:02] [%clk 00:00:30]}
exf2 {[%emt 00:00:03] [%clk 00:00:39]} 48. Ke2 {[%emt 00:00:09] [%clk 00:00:31]}
Rb2+ {[%emt 00:00:05] [%clk 00:00:44]} 0-1

[Site "Europe Echecs"]

[Event "Championnat d'Europe Rapide"]
[Date "2024.12.07"]
[White "Paichadze, Luka"]
[Black "Lagarde, Maxime"]
[WhiteElo "2532"]
[BlackElo "2600"]
[Round "4.11"]
[Result "0-1"]
[TimeControl "900+10"]

1. e4 {[%emt 00:00:02] [%clk 00:15:17]} e6 {[%emt 00:00:01] [%clk 00:15:19]} 2.
d4 {[%emt 00:00:05] [%clk 00:15:22]} d5 {[%emt 00:00:02] [%clk 00:15:28]} 3.
exd5 {[%emt 00:00:13] [%clk 00:15:19]} exd5 {[%emt 00:00:02] [%clk 00:15:36]} 4.
Nf3 {[%emt 00:00:01] [%clk 00:15:28]} Nf6 {[%emt 00:00:37] [%clk 00:15:09]} 5.
Bd3 {[%emt 00:00:01] [%clk 00:15:36]} c5 {[%emt 00:00:02] [%clk 00:15:18]} 6.
O-O {[%emt 00:00:12] [%clk 00:15:33]} c4 {[%emt 00:00:06] [%clk 00:15:23]} 7.
Re1+ {[%emt 00:00:02] [%clk 00:15:41]} Be7 {[%emt 00:00:02] [%clk 00:15:31]} 8.
Bf1 {[%emt 00:00:01] [%clk 00:15:50]} O-O {[%emt 00:00:09] [%clk 00:15:32]} 9.
b3 {[%emt 00:00:02] [%clk 00:15:58]} cxb3 {[%emt 00:00:02] [%clk 00:15:39]} 10.
axb3 {[%emt 00:00:02] [%clk 00:16:07]} Nc6 {[%emt 00:00:09] [%clk 00:15:40]} 11.
h3 {[%emt 00:00:18] [%clk 00:15:58]} Ne4 {[%emt 00:00:56] [%clk 00:14:55]} 12.
c4 {[%emt 00:00:30] [%clk 00:15:38]} Be6 {[%emt 00:00:23] [%clk 00:14:41]} 13.
Ba3 {[%emt 00:01:41] [%clk 00:14:08]} Bxa3 {[%emt 00:01:50] [%clk 00:13:01]} 14.
Rxa3 {[%emt 00:00:10] [%clk 00:14:08]} Qf6 {[%emt 00:01:32] [%clk 00:11:39]} 15.
cxd5 {[%emt 00:01:55] [%clk 00:12:23]} Bxd5 {[%emt 00:00:01] [%clk 00:11:48]}
16. Bc4 {[%emt 00:00:03] [%clk 00:12:30]} Qd6 {[%emt 00:01:50] [%clk 00:10:08]}
17. Ne5 {[%emt 00:01:52] [%clk 00:10:48]} Nf6 {[%emt 00:05:04] [%clk 00:05:13]}
18. Ra2 {[%emt 00:03:42] [%clk 00:07:17]} Rfe8 {[%emt 00:01:44] [%clk 00:03:39]}
19. Rd2 {[%emt 00:02:53] [%clk 00:04:33]} Rad8 {[%emt 00:00:22] [%clk 00:03:27]}
20. Nc3 {[%emt 00:00:44] [%clk 00:04:00]} Bxc4 {[%emt 00:00:02] [%clk 00:03:35]}
21. Nxc4 {[%emt 00:01:13] [%clk 00:02:57]} Rxe1+ {[%emt 00:00:02] [%clk
00:03:43]} 22. Qxe1 {[%emt 00:00:01] [%clk 00:03:06]} Qb4 {[%emt 00:00:01] [%clk
00:03:52]} 23. d5 {[%emt 00:01:26] [%clk 00:01:50]} Ne7 {[%emt 00:01:38] [%clk
00:02:24]} 24. d6 {[%emt 00:00:37] [%clk 00:01:23]} Ng6 {[%emt 00:00:06] [%clk
00:02:28]} 25. Ne4 {[%emt 00:00:22] [%clk 00:01:11]} b5 {[%emt 00:01:04] [%clk
00:01:34]} 26. Nxf6+ {[%emt 00:00:31] [%clk 00:00:49]} gxf6 {[%emt 00:00:02]
[%clk 00:01:43]} 27. Nb2 {[%emt 00:00:43] [%clk 00:00:16]} Qxb3 {[%emt 00:00:24]
[%clk 00:01:29]} 28. Qe4 {[%emt 00:00:13] [%clk 00:00:13]} Qe6 {[%emt 00:00:08]
[%clk 00:01:32]} 29. Qd4 {[%emt 00:00:02] [%clk 00:00:20]} Qe1+ {[%emt 00:00:10]
[%clk 00:01:31]} 30. Kh2 {[%emt 00:00:02] [%clk 00:00:29]} Qe5+ {[%emt 00:00:01]
[%clk 00:01:40]} 31. g3 {[%emt 00:00:03] [%clk 00:00:36]} Qxd4 {[%emt 00:00:31]
[%clk 00:01:19]} 32. Rxd4 {[%clk 00:00:45]} Ne5 {[%emt 00:00:05] [%clk
00:01:24]} 33. Rd5 {[%clk 00:00:54]} a6 {[%emt 00:00:26] [%clk 00:01:08]} 34. f4
{[%emt 00:00:02] [%clk 00:01:02]} Nd7 {[%emt 00:00:05] [%clk 00:01:13]} 35. Nd3
{[%emt 00:00:16] [%clk 00:00:55]} Rc8 {[%emt 00:00:39] [%clk 00:00:44]} 36. Nb4
{[%emt 00:00:16] [%clk 00:00:50]} a5 {[%clk 00:00:53]} 37. Na6 {[%emt 00:00:03]
[%clk 00:00:57]} Rc2+ {[%emt 00:00:03] [%clk 00:01:00]} 38. Kg1 {[%emt 00:00:01]
[%clk 00:01:06]} b4 {[%emt 00:00:16] [%clk 00:00:54]} 39. Rb5 {[%emt 00:00:13]
[%clk 00:01:03]} Rd2 {[%emt 00:00:02] [%clk 00:01:02]} 40. Nc7 {[%emt 00:00:41]
[%clk 00:00:32]} a4 {[%emt 00:00:22] [%clk 00:00:50]} 41. Ne8 {[%emt 00:00:23]
[%clk 00:00:19]} b3 {[%emt 00:00:15] [%clk 00:00:45]} 0-1

[Site "Europe Echecs"]

[Event "Championnat d'Europe Rapide"]
[Date "2024.12.07"]
[White "Pichot, Alan"]
[Black "Kilic, Eray"]
[WhiteElo "2637"]
[BlackElo "2459"]
[Round "4.12"]
[Result "0-1"]
[TimeControl "900+10"]

1. e4 {[%emt 00:00:59] [%clk 00:14:19]} c5 {[%emt 00:00:02] [%clk 00:15:18]} 2.
Nf3 {[%emt 00:00:04] [%clk 00:14:25]} d6 {[%emt 00:00:09] [%clk 00:15:19]} 3.
Bb5+ {[%emt 00:00:03] [%clk 00:14:33]} Nd7 {[%emt 00:00:03] [%clk 00:15:26]} 4.
Ba4 {[%emt 00:00:02] [%clk 00:14:41]} Ngf6 {[%emt 00:00:15] [%clk 00:15:21]} 5.
O-O {[%emt 00:00:06] [%clk 00:14:45]} a6 {[%emt 00:01:00] [%clk 00:14:31]} 6. c4
{[%emt 00:00:03] [%clk 00:14:52]} g6 {[%emt 00:00:15] [%clk 00:14:26]} 7. Nc3
{[%emt 00:00:06] [%clk 00:14:57]} Bg7 {[%emt 00:00:01] [%clk 00:14:34]} 8. d3
{[%emt 00:00:14] [%clk 00:14:53]} O-O {[%emt 00:00:04] [%clk 00:14:40]} 9. h3
{[%emt 00:00:08] [%clk 00:14:55]} b6 {[%emt 00:01:11] [%clk 00:13:40]} 10. Be3
{[%emt 00:00:44] [%clk 00:14:20]} Bb7 {[%emt 00:00:03] [%clk 00:13:47]} 11. Qd2
{[%emt 00:00:09] [%clk 00:14:21]} Nh5 {[%emt 00:00:38] [%clk 00:13:19]} 12. Bh6
{[%emt 00:02:54] [%clk 00:11:37]} e5 {[%emt 00:00:21] [%clk 00:13:09]} 13. Rab1
{[%emt 00:01:40] [%clk 00:10:07]} f5 {[%emt 00:02:21] [%clk 00:10:58]} 14. Bg5
{[%emt 00:00:01] [%clk 00:10:15]} Qc7 {[%emt 00:02:12] [%clk 00:08:56]} 15. Bh6
{[%emt 00:01:55] [%clk 00:08:30]} fxe4 {[%emt 00:02:18] [%clk 00:06:48]} 16.
dxe4 {[%emt 00:00:13] [%clk 00:08:27]} Bxh6 {[%emt 00:00:23] [%clk 00:06:35]}
17. Qxh6 {[%emt 00:00:02] [%clk 00:08:36]} Rxf3 {[%emt 00:00:06] [%clk
00:06:40]} 18. gxf3 {[%emt 00:00:24] [%clk 00:08:21]} Rf8 {[%emt 00:00:59] [%clk
00:05:50]} 19. Rfe1 {[%emt 00:01:34] [%clk 00:06:57]} Nf4 {[%emt 00:01:00] [%clk
00:04:59]} 20. Rbd1 {[%emt 00:00:48] [%clk 00:06:21]} Nf6 {[%emt 00:00:08] [%clk
00:05:00]} 21. Kh2 {[%emt 00:00:20] [%clk 00:06:12]} Bc8 {[%emt 00:00:31] [%clk
00:04:38]} 22. Rg1 {[%emt 00:01:00] [%clk 00:05:22]} Nxh3 {[%emt 00:00:20] [%clk
00:04:28]} 23. Rg3 {[%emt 00:00:02] [%clk 00:05:30]} Nf4 {[%emt 00:00:04] [%clk
00:04:34]} 24. Rdg1 {[%emt 00:00:38] [%clk 00:05:03]} Be6 {[%emt 00:00:29] [%clk
00:04:15]} 25. Ne2 {[%emt 00:00:59] [%clk 00:04:14]} N6h5 {[%emt 00:00:02] [%clk
00:04:22]} 26. Nxf4 {[%emt 00:00:39] [%clk 00:03:45]} Nxf4 {[%emt 00:00:11]
[%clk 00:04:22]} 27. Bc2 {[%emt 00:02:39] [%clk 00:01:15]} Rf6 {[%emt 00:00:43]
[%clk 00:03:49]} 28. Re1 {[%emt 00:00:48] [%clk 00:00:38]} Qe7 {[%emt 00:00:26]
[%clk 00:03:32]} 29. b3 {[%emt 00:00:10]} Kh8 {[%clk 00:03:40]} 30. Re3 {[%emt
00:00:28] [%clk 00:00:23]} g5 {[%emt 00:00:57] [%clk 00:02:53]} 31. Qxg5 {[%emt
00:00:03] [%clk 00:00:30]} Qf8 {[%clk 00:03:02]} 32. Kg1 {[%emt 00:00:22] [%clk
00:00:18]} Rg6 {[%emt 00:00:45] [%clk 00:02:27]} 33. Qh4 {[%emt 00:00:03] [%clk
00:00:26]} Rh6 {[%emt 00:00:02] [%clk 00:02:33]} 34. Qg5 {[%emt 00:00:04] [%clk
00:00:33]} Rh5 {[%emt 00:00:01] [%clk 00:02:42]} 0-1

[Site "Europe Echecs"]